bitfinex-derivatives/quotes_ETHF0:USTF0_20241004
["timestamp","ask_amount","ask_price","bid_price","bid_amount"]
[1728055596443,5.05578,2390.9,2390.6,0.41835]
[1728055596636,0.41835,2390.7,2390.6,0.41835]
[1728055596841,5.05578,2390.9,2390.6,0.41835]
[1728055597047,0.41835,2390.7,2390.3,1.04605]
[1728055597244,0.41835,2390.7,2390.6,0.41835]
[1728055597447,5.05578,2390.9,2390.3,1.04605]
[1728055597649,0.41837,2390.6,2390.5,0.41837]
[1728055597946,4.01,2390.9,2390.3,1.04605]
[1728055598146,0.41833,2390.8,2390.7,0.41834]
[1728055598442,1.04565,2391.2,2390.6,1.04591]
[1728055598641,0.41833,2390.8,2390.5,3.2078]
[1728055598839,4.01,2391.1,2390.4,0.4273]
[1728055599040,4.7929,2391.4,2390.6,3.2078]
[1728055599239,0.3941,2391.4,2391.3,0.41824]
[1728055599437,0.41827,2391.2,2391.0,0.41829]
[1728055599651,4.4041,2391.4,2390.7,1.04583]
[1728055599848,4.4041,2391.4,2390.6,0.41836]
[1728055599849,0.41835,2390.7,2390.6,0.41836]
[1728055600250,0.41835,2390.7,2390.4,0.4273]
[1728055600546,0.41838,2390.5,2390.4,0.41839]
[1728055600751,0.41838,2390.5,2390.3,3.2078]
[1728055600752,0.41837,2390.6,2390.5,0.41837]
[1728055600950,0.4184,2390.5,2390.3,3.6262]
[1728055601153,0.4184,2390.4,2390.3,3.6262]
[1728055601344,0.4184,2390.4,2390.2,0.4099]
[1728055601345,4.01,2390.5,2389.9,3.2078]
[1728055601545,1.04601,2390.4,2390.0,0.41845]
[1728055601849,0.41844,2390.2,2390.0,0.41845]
[1728055602050,0.4075,2390.3,2390.1,0.41844]
[1728055602350,0.41846,2390.1,2389.9,3.62628]
[1728055603053,4.01,2390.2,2390.1,0.41845]
[1728055603352,4.42844,2390.2,2390.0,0.41846]
[1728055603552,0.41845,2390.1,2389.9,3.62627]
[1728055603753,0.41845,2390.1,2390.0,0.41847]
[1728055603955,1.86232,2390.4,2390.1,0.41845]
[1728055603956,0.4184,2390.4,2390.1,0.41845]
[1728055604249,4.01,2390.5,2390.4,0.4184]
[1728055604441,3.2078,2390.6,2390.5,0.41838]
[1728055604641,4.83858,2391.1,2390.4,1.046]
[1728055604845,4.83858,2391.1,2390.5,1.04596]
[1728055604846,0.41832,2390.9,2390.5,1.04596]
[1728055605042,0.3962,2391.0,2390.9,0.41831]
[1728055605246,3.6261,2391.3,2390.7,1.04586]
[1728055605555,0.41834,2390.8,2390.6,0.41836]
[1728055605849,4.01,2390.8,2390.1,3.6276]
[1728055606044,4.01,2390.6,2390.1,3.6276]
[1728055606246,0.41842,2390.3,2390.2,0.41843]
[1728055606446,0.41841,2390.4,2390.1,3.2078]
[1728055606654,0.41842,2390.3,2390.2,0.41842]
[1728055606858,0.41843,2390.2,2390.1,3.62625]
[1728055607051,0.81463,2390.2,2390.1,3.62625]
[1728055607251,0.81463,2390.2,2390.1,3.2078]
[1728055607549,0.3962,2390.2,2390.1,3.62625]
[1728055607758,0.81463,2390.2,2390.1,3.2078]
[1728055607948,0.81463,2390.2,2390.1,3.62625]
[1728055609350,0.3962,2390.2,2390.1,3.62625]
[1728055609750,6.36177906,2390.4,2390.2,0.41843]
[1728055609955,2.73556906,2390.4,2390.1,3.2078]
[1728055610156,2.73556906,2390.4,2390.3,0.41842]
[1728055610551,3.149815,2390.4,2390.1,3.6193]
[1728055610753,2.731405,2390.4,2390.1,3.2078]
[1728055610954,0.41843,2390.2,2390.1,3.62624]
[1728055611152,4.01,2390.3,2390.2,0.41843]
[1728055611751,4.01,2390.3,2390.1,3.62624]
[1728055612060,4.01,2390.3,2390.1,3.2078]
[1728055612278,0.41843,2390.2,2390.1,3.62624]
[1728055612557,0.41843,2390.2,2390.1,3.2078]
[1728055612763,4.42843,2390.3,2390.1,3.2078]
[1728055612963,0.41843,2390.2,2390.1,3.2078]
[1728055613459,0.41843,2390.2,2390.1,3.62625]
[1728055613658,4.60243,2390.2,2390.1,3.2078]
[1728055614955,0.41843,2390.2,2390.1,3.2078]
[1728055615156,0.41843,2390.2,2390.1,3.62625]
[1728055615659,3.68843,2390.2,2390.1,3.62625]
[1728055616454,3.68843,2390.2,2390.1,3.2078]
[1728055616856,7.87243,2390.2,2390.1,3.2078]
[1728055618957,7.87243,2390.2,2389.7,1.4661]
[1728055618958,7.454,2390.2,2389.6,3.6193]
[1728055619155,3.68849,2389.9,2389.8,0.41849]
[1728055619759,3.68849,2389.9,2389.7,0.41852]
[1728055619760,0.41852,2389.8,2389.7,0.41852]
[1728055619963,3.6885,2389.9,2389.8,0.4185]
[1728055620161,0.41851,2389.8,2389.7,0.41851]
[1728055620462,6.4778,2389.8,2389.3,3.2078]
[1728055620657,0.41863,2389.1,2389.0,0.41864]
[1728055620860,3.27,2389.1,2389.0,0.41864]
[1728055621862,3.68863,2389.1,2389.0,0.41864]
[1728055622164,3.27,2389.1,2389.0,0.41864]
[1728055622364,3.27,2389.1,2388.9,0.4002]
[1728055622558,3.27,2389.1,2389.0,0.41864]
[1728055622956,0.41861,2389.2,2389.1,0.41861]
[1728055623156,3.27,2389.3,2389.2,0.41861]
[1728055623558,6.89636,2389.5,2389.4,0.41857]
[1728055623759,3.2078,2389.5,2389.4,0.41857]
[1728055623964,3.2078,2389.5,2389.4,4.60337]
[1728055624587,3.27,2389.7,2389.4,4.1848]
[1728055624761,0.41854,2389.6,2389.5,0.83054]
[1728055624961,0.41857,2389.5,2389.4,0.41856]
[1728055625268,4.31636,2389.6,2389.5,0.41856]
[1728055625269,3.68854,2389.6,2389.5,0.41856]
[1728055625465,0.41859,2389.3,2389.2,0.4186]
[1728055625666,0.41859,2389.3,2389.1,0.412]
[1728055625866,0.41859,2389.3,2389.2,0.41861]
[1728055627371,0.41861,2389.2,2389.1,0.83061]
[1728055627760,0.4186,2389.3,2389.2,0.41859]
[1728055629170,0.4186,2389.3,2389.1,0.412]
[1728055629171,3.68858,2389.4,2389.3,0.41859]
[1728055629370,3.27,2389.4,2389.3,0.41859]
[1728055629569,0.4186,2389.3,2389.2,0.4186]
[1728055630167,3.68858,2389.4,2389.3,0.41859]
[1728055630472,3.27,2389.4,2389.2,0.41861]
[1728055630669,3.27,2389.4,2389.1,0.412]
[1728055630971,3.68858,2389.4,2389.3,0.41859]
[1728055631272,3.27,2389.4,2389.1,0.412]
[1728055631469,3.27,2389.4,2389.3,0.41859]
[1728055632366,3.6594,2389.5,2389.1,1.45856]
[1728055632562,4.07797,2389.5,2389.4,0.41857]
[1728055632871,3.68856,2389.5,2389.4,0.41857]
[1728055633168,3.27,2389.5,2389.4,0.41857]
[1728055633371,3.27,2389.7,2389.6,0.41854]
[1728055633576,3.27,2389.7,2389.3,0.398]
[1728055633770,3.27,2389.5,2389.1,0.412]
[1728055633964,3.27,2389.3,2389.2,0.41861]
[1728055635172,0.41861,2389.2,2389.1,0.83061]
[1728055635367,4.09071,2389.2,2389.1,0.83061]
[1728055635567,4.1085,2389.3,2389.1,0.412]
[1728055635767,3.27,2389.3,2389.2,0.41861]
[1728055635966,4.31638,2389.6,2389.1,0.412]
[1728055636171,0.41858,2389.4,2389.3,0.41857]
[1728055637800,0.41857,2389.5,2389.4,0.41856]
[1728055638574,0.41861,2389.3,2389.2,0.41859]
[1728055638781,3.27,2389.3,2389.1,0.412]
[1728055638974,3.27,2389.3,2388.9,0.4095]
[1728055639169,3.27,2389.1,2389.0,0.41863]
[1728055639777,3.68863,2389.1,2389.0,0.41863]
[1728055640173,0.41866,2388.9,2388.8,0.83686]
[1728055640477,0.41866,2388.9,2388.8,0.4182]
[1728055640478,3.68866,2388.9,2388.8,0.4182]
[1728055640681,3.68866,2388.9,2388.4,0.41873]
[1728055640682,0.41874,2388.5,2388.4,0.41873]
[1728055641183,1.04689,2388.4,2388.0,0.4213]
[1728055641370,3.27,2388.2,2388.1,0.41879]
[1728055641571,3.68878,2388.2,2388.1,0.41879]
[1728055641772,0.41877,2388.3,2388.2,0.41878]
[1728055641969,0.3914,2388.5,2388.0,1.46834]
[1728055641970,3.27,2388.5,2388.0,1.46834]
[1728055642276,3.68873,2388.5,2388.4,0.41875]
[1728055642472,0.4124,2388.7,2388.1,3.2078]
[1728055642673,4.10567,2388.9,2388.8,0.41868]
[1728055643175,4.10567,2388.9,2388.7,0.41868]
[1728055643176,4.10568,2388.9,2388.7,0.41868]
[1728055643376,4.10568,2388.9,2388.8,0.41868]
[1728055643566,4.10568,2388.9,2388.7,0.41869]
[1728055643771,3.27,2388.9,2388.8,0.41868]
[1728055643975,3.27,2388.9,2388.4,0.8165]
[1728055644215,3.27,2388.7,2388.6,0.4187]
[1728055644569,3.6887,2388.7,2388.6,0.4187]
[1728055644875,3.6887,2388.7,2388.6,0.41871]
[1728055645171,3.27,2388.7,2388.4,0.4175]
[1728055645372,3.6887,2388.7,2388.6,0.41871]
[1728055645881,3.27,2389.0,2388.4,3.6253]
[1728055646074,0.4187,2388.7,2388.6,0.41871]
[1728055646580,0.4187,2388.7,2388.1,4.25481]
[1728055646581,0.3884,2388.7,2388.1,3.2078]
[1728055646788,0.3884,2388.7,2388.3,0.41875]
[1728055646789,0.41875,2388.4,2388.3,0.41875]
[1728055647170,1.04683,2388.5,2388.1,3.5961]
[1728055647374,3.27,2388.4,2388.3,0.41877]
[1728055647576,0.41876,2388.4,2388.1,3.5961]
[1728055647786,0.41876,2388.4,2388.3,0.41876]
[1728055647978,0.41878,2388.2,2388.1,0.3883]
[1728055648179,0.41878,2388.2,2387.9,0.41882]
[1728055648180,0.41883,2388.0,2387.9,0.41882]
[1728055648484,3.68883,2388.0,2387.9,0.41882]
[1728055648783,3.27,2388.0,2387.9,0.41882]
[1728055650680,0.4046,2388.1,2388.0,0.41882]
[1728055650981,0.4046,2388.1,2387.6,1.46502]
[1728055651186,3.27,2387.9,2387.8,0.41885]
[1728055651392,4.1016,2388.1,2388.0,0.41882]
[1728055651981,3.27,2388.3,2388.2,0.41878]
[1728055652482,3.68877,2388.3,2388.2,0.41878]
[1728055652888,3.68879,2388.3,2388.2,0.41878]
[1728055653883,3.68879,2388.3,2388.0,0.41879]
[1728055653884,0.41881,2388.1,2388.0,0.41879]
[1728055654188,3.27,2388.1,2388.0,0.41879]
[1728055654377,3.68879,2388.3,2388.2,0.41877]
[1728055655880,3.68877,2388.3,2388.2,0.41877]
[1728055656280,3.27,2388.3,2388.2,0.41877]
[1728055656984,0.4188,2388.2,2387.9,1.04707]
[1728055657184,3.68883,2388.1,2388.0,0.4188]
[1728055657783,4.10483,2388.1,2388.0,0.4188]
[1728055658894,3.686,2388.1,2388.0,0.4188]
[1728055659085,4.1048,2388.1,2388.0,0.4188]
[1728055659685,3.686,2388.1,2388.0,0.4188]
[1728055659883,0.416,2388.1,2388.0,0.4188]
[1728055660181,3.27,2388.3,2388.2,0.41878]
[1728055660386,3.68877,2388.3,2388.2,0.41878]
[1728055661086,3.27,2388.3,2387.9,1.04707]
[1728055661292,0.41881,2388.2,2388.1,0.41879]
[1728055661488,3.68881,2388.2,2387.8,4.25494]
[1728055661788,0.41881,2388.1,2388.0,0.4188]
[1728055661992,3.27,2388.2,2388.1,0.4188]
[1728055662192,3.68878,2388.2,2388.1,0.4188]
[1728055662687,3.27,2388.2,2388.1,0.4188]
[1728055662892,3.27,2388.3,2388.2,0.41878]
[1728055664996,7.71103,2388.5,2388.4,0.41875]
[1728055665187,4.50323,2388.5,2388.4,0.41875]
[1728055666589,4.50323,2388.5,2386.5,3.20812753]
[1728055666590,4.0845,2388.5,2386.5,3.20812753]
[1728055666792,3.68879,2388.3,2388.2,0.41877]
[1728055668798,3.27,2388.3,2387.9,0.3884]
[1728055669004,0.4188,2388.2,2388.1,0.41878]
[1728055669889,3.27,2388.3,2387.9,1.43549]
[1728055670085,4.0845,2388.5,2387.9,0.3884]
[1728055670295,4.50324,2388.5,2388.4,0.41875]
[1728055670594,4.50324,2388.5,2388.3,0.41875]
[1728055670595,0.41877,2388.4,2388.3,0.41875]
[1728055670800,3.27,2388.4,2388.0,1.04704]
[1728055671098,3.68876,2388.4,2388.0,1.04704]
[1728055671299,3.27,2388.4,2388.0,1.04704]
[1728055671596,3.27,2388.4,2388.3,0.41877]
[1728055672605,3.68875,2388.4,2388.3,0.41877]
[1728055673593,0.8145,2388.5,2388.3,0.41877]
[1728055673594,3.27,2388.6,2388.3,4.1872]
[1728055673922,3.28268288,2389.2,2389.1,0.41863]
[1728055673923,2.72973422,2389.2,2389.1,0.41863]
[1728055674198,0.7964,2389.5,2389.1,0.41863]
[1728055674388,1.21496,2389.5,2389.4,0.41857]
[1728055674794,4.48496,2389.5,2389.4,0.41857]
[1728055675097,0.41858,2389.4,2389.3,0.41858]
[1728055675301,4.48496,2389.5,2389.4,0.41857]
[1728055676899,4.0664,2389.5,2389.4,0.41857]
[1728055677201,2.72973422,2390.0,2389.7,0.41852]
[1728055677407,7.312,2390.4,2390.3,0.41842]
[1728055677598,7.93961,2390.4,2389.8,3.5988]
[1728055677803,3.27,2390.1,2389.8,3.5988]
[1728055677997,3.68849,2389.9,2389.8,0.8095]
[1728055678199,3.68849,2389.9,2389.8,0.4185]
[1728055678502,0.41853,2389.7,2389.6,0.41853]
[1728055678705,3.68853,2389.7,2389.6,0.41853]
[1728055678907,3.27,2389.7,2389.6,0.41853]
[1728055679205,3.6858,2389.8,2389.7,0.41852]
[1728055679603,4.1043,2389.8,2389.7,0.41852]
[1728055680201,0.41853,2389.7,2389.6,0.41852]
[1728055680402,0.41856,2389.5,2389.4,0.41856]
[1728055680701,3.27,2389.5,2389.0,0.3935]
[1728055680909,0.41857,2389.4,2389.3,0.41859]
[1728055681106,0.4201,2389.4,2389.0,0.3935]
[1728055681612,0.4201,2389.4,2389.3,0.41859]
[1728055683618,3.27,2389.5,2389.0,1.4401]
[1728055683912,3.27,2389.8,2389.7,0.41852]
[1728055684805,3.27,2390.1,2389.5,1.46819]
[1728055685007,3.68846,2390.1,2390.0,0.41846]
[1728055685405,3.68847,2390.1,2389.6,0.41854]
[1728055685716,3.68847,2390.1,2390.0,0.41847]
[1728055685905,0.41848,2390.0,2389.6,0.41854]
[1728055686098,0.41848,2390.0,2389.9,0.41849]
[1728055686308,3.27,2390.1,2389.5,0.4218]
[1728055686309,0.41851,2389.8,2389.5,0.4218]
[1728055686513,3.68854,2389.6,2389.5,0.41854]
[1728055687010,3.27,2389.6,2389.5,0.41854]
[1728055687202,3.68854,2389.6,2389.5,0.41854]
[1728055687614,3.68855,2389.6,2389.5,0.41856]
[1728055687806,3.27,2389.6,2389.5,0.41856]
[1728055688005,1.2039,2389.7,2389.2,1.43831]
[1728055688006,1.2039,2389.7,2389.3,1.04647]
[1728055688216,0.8104,2389.7,2389.6,0.41854]
[1728055689502,3.27,2389.8,2389.7,0.41852]
[1728055689711,3.2078,2390.0,2389.9,0.41849]
[1728055689712,4.0246,2390.0,2389.9,0.41849]
[1728055690706,0.8168,2390.0,2389.9,0.41849]
[1728055691109,4.50528,2390.0,2389.9,0.41849]
[1728055691709,3.6589,2390.0,2389.9,0.41849]
[1728055691914,0.3889,2390.0,2389.9,0.41849]
[1728055692140,3.27,2390.2,2389.7,4.2541]
[1728055692412,0.41845,2390.1,2389.7,4.2541]
[1728055692619,0.41845,2390.1,2390.0,0.41847]
[1728055693116,4.60245,2390.1,2390.0,0.41847]
[1728055693318,0.41845,2390.1,2390.0,0.41847]
[1728055693511,0.41847,2390.0,2389.9,0.41847]
[1728055693717,3.68847,2390.0,2389.9,0.41847]
[1728055694123,0.4185,2389.9,2389.8,0.4185]
[1728055694509,3.27,2390.0,2389.9,0.41849]
[1728055694510,4.08928,2390.0,2389.9,0.41849]
[1728055694711,3.27,2390.1,2390.0,0.41847]
[1728055695213,3.68845,2390.1,2390.0,0.41847]
[1728055695613,3.27,2390.1,2390.0,0.41847]
[1728055695919,3.27,2390.1,2389.5,1.44536]
[1728055696220,3.27,2389.7,2389.4,3.2078]
[1728055696414,3.27,2389.5,2389.4,3.2078]
[1728055696714,3.27,2389.5,2389.4,3.62636]
[1728055697314,3.27,2389.7,2389.4,7.3926]
[1728055697509,3.27,2389.7,2389.6,0.41854]
[1728055698016,3.27,2389.7,2389.5,0.41855]
[1728055698217,0.41855,2389.6,2389.5,0.41855]
[1728055698410,4.31632,2389.7,2389.4,3.62636]
[1728055698411,0.41856,2389.5,2389.4,3.62636]
[1728055698616,0.41855,2389.6,2389.5,0.41855]
[1728055699219,0.41856,2389.5,2389.4,3.2078]
[1728055699416,0.41856,2389.5,2389.4,3.62637]
[1728055700114,0.41855,2389.6,2389.5,0.41854]
[1728055700416,4.0735,2389.8,2389.4,4.25423]
[1728055700611,4.0735,2389.8,2389.7,0.41852]
[1728055700813,0.41853,2389.7,2389.6,0.41853]
[1728055701009,3.27,2389.7,2389.4,3.2078]
[1728055701214,0.41856,2389.5,2389.4,3.62637]
[1728055701521,0.41856,2389.6,2389.5,0.41855]
[1728055701721,3.27,2389.7,2389.4,3.2078]
[1728055701920,0.41856,2389.6,2389.5,0.41855]
[1728055702822,3.27,2389.7,2389.4,3.2078]
[1728055703012,4.49201,2389.8,2389.7,0.41852]
[1728055703218,3.6577,2389.8,2389.7,0.41852]
[1728055703515,0.8062,2389.8,2389.7,0.41852]
[1728055703822,1.43397,2389.8,2389.4,3.2078]
[1728055704023,3.27,2389.6,2389.1,0.3959]
[1728055704221,3.27,2389.6,2388.9,3.62645]
[1728055704222,0.41864,2389.0,2388.9,3.62645]
[1728055704524,3.68864,2389.0,2388.9,3.2078]
[1728055704714,7.87424,2389.0,2388.9,3.2078]
[1728055705022,13.4556,2389.0,2388.2,3.2078]
[1728055705327,3.27,2388.4,2388.3,0.41877]
[1728055706523,3.68875,2388.4,2388.2,3.62657]
[1728055706721,3.68875,2388.4,2388.2,0.41877]
[1728055706722,4.08965,2388.4,2388.2,0.41877]
[1728055706920,4.08965,2388.4,2388.1,0.414]
[1728055706921,3.6709,2388.4,2388.1,0.414]
[1728055707220,4.08965,2388.4,2388.2,0.41877]
[1728055707618,4.08965,2388.4,2388.3,0.41877]
[1728055708127,4.08965,2388.4,2388.2,0.41877]
[1728055708421,4.08965,2388.4,2388.2,0.41878]
[1728055708625,4.08965,2388.4,2388.3,0.41877]
[1728055708827,4.08965,2388.4,2388.2,0.41877]
[1728055709420,4.08965,2388.4,2388.3,0.41877]
[1728055709626,4.08965,2388.4,2388.2,0.41877]
[1728055710421,4.08965,2388.4,2388.2,0.41878]
[1728055710722,0.41877,2388.3,2388.1,0.83278]
[1728055710922,0.41877,2388.3,2388.1,0.41878]
[1728055711623,3.27,2388.2,2388.0,0.41881]
[1728055711924,3.68879,2388.2,2388.1,0.4188]
[1728055712423,0.41881,2388.1,2387.9,0.4208]
[1728055712628,3.27,2388.0,2387.9,0.41883]
[1728055713025,3.68883,2388.0,2387.8,3.2078]
[1728055713227,3.68883,2388.0,2387.8,3.62664]
[1728055713532,3.68883,2388.0,2387.8,3.2078]
[1728055713731,3.27,2388.0,2387.8,3.62665]
[1728055713924,3.68883,2388.0,2387.8,3.62665]
[1728055714122,3.27,2388.0,2387.8,3.2078]
[1728055714325,0.41886,2387.8,2387.6,0.41888]
[1728055714524,3.27,2387.8,2387.7,0.41887]
[1728055714728,7.87685,2387.8,2387.7,0.41887]
[1728055714921,7.458,2387.8,2387.7,0.41887]
[1728055715626,7.458,2387.8,2387.5,3.2078]
[1728055715825,3.68886,2387.8,2387.6,0.41888]
[1728055716024,3.68886,2387.8,2387.6,0.41889]
[1728055716221,3.68886,2387.8,2387.7,0.41887]
[1728055716426,3.27,2387.8,2387.5,3.2078]
[1728055716735,0.41887,2387.7,2387.6,0.41888]
[1728055717061,3.68887,2387.8,2387.6,0.41888]
[1728055717836,3.68887,2387.8,2387.5,3.2078]
[1728055718130,3.68887,2387.8,2387.6,0.41888]
[1728055718325,3.27,2387.8,2387.5,3.2078]
[1728055718526,1.21744,2387.9,2387.8,0.41885]
[1728055718827,1.21744,2387.9,2387.7,0.41886]
[1728055718828,0.41886,2387.8,2387.7,0.41886]
[1728055719029,1.21744,2387.9,2387.8,0.41885]
[1728055719435,5.40544,2387.9,2387.8,0.41885]
[1728055720027,5.40544,2387.9,2387.5,4.25507]
[1728055720225,1.21744,2387.9,2387.5,4.25507]
[1728055720447,1.21744,2387.9,2387.5,3.2078]
[1728055720448,0.41885,2387.8,2387.5,3.2078]
[1728055720624,0.41888,2387.7,2387.6,0.41888]
[1728055720823,3.27,2387.8,2387.5,3.2078]
[1728055721028,0.41888,2387.7,2387.6,0.41888]
[1728055721437,0.41888,2387.7,2387.5,3.62669]
[1728055721639,0.41888,2387.7,2387.5,3.2078]
[1728055722030,0.41888,2387.7,2387.6,0.41889]
[1728055722538,3.27,2387.8,2387.5,3.2078]
[1728055723040,0.41888,2387.7,2387.6,0.41888]
[1728055723239,0.4189,2387.6,2387.5,0.4189]
[1728055723634,3.27,2387.8,2387.4,0.3949]
[1728055723836,0.4189,2387.6,2387.4,0.3949]
[1728055724037,3.6889,2387.6,2387.4,0.3949]
[1728055724340,0.41888,2387.7,2387.6,0.41889]
[1728055724739,0.41891,2387.5,2387.4,0.81381]
[1728055724928,0.41889,2387.6,2387.5,0.4189]
[1728055725241,7.52494,2387.8,2387.4,0.3949]
[1728055725436,3.2078,2388.1,2387.5,3.27]
[1728055725636,0.41874,2388.5,2387.8,4.25494]
[1728055725829,3.27,2388.3,2387.9,0.4199]
[1728055726029,0.41884,2388.0,2387.9,0.41883]
[1728055726231,1.04705,2388.0,2387.6,0.4046]
[1728055726540,0.41887,2387.8,2387.7,0.41886]
[1728055727441,3.68885,2387.9,2387.8,0.41885]
[1728055727749,8.5051,2387.9,2387.4,1.46721]
[1728055727937,0.41888,2387.7,2387.6,0.41887]
[1728055728136,3.68888,2387.7,2387.6,0.41887]
[1728055728443,3.27,2387.7,2387.6,0.41887]
[1728055728949,0.41885,2387.9,2387.4,1.46721]
[1728055729245,0.8339,2388.0,2387.9,0.41884]
[1728055729436,3.27,2388.1,2388.0,0.41882]
[1728055729635,0.41876,2388.4,2388.3,0.41875]
[1728055730946,3.27,2388.5,2388.2,0.41877]
[1728055730947,0.41878,2388.3,2388.2,0.41877]
[1728055731246,0.4188,2388.2,2388.1,0.41879]
[1728055733140,3.68878,2388.3,2388.2,0.41878]
[1728055733336,3.27,2388.5,2388.0,0.4226]
[1728055733539,10.5988,2389.0,2388.5,0.41873]
[1728055733738,0.4192,2389.1,2389.0,0.41864]
[1728055733943,0.83783,2389.1,2389.0,0.41864]
[1728055734267,3.6892,2389.1,2388.7,0.4065]
[1728055734437,0.41866,2389.0,2388.9,0.41866]
[1728055734641,3.6892,2389.1,2388.6,0.4284]
[1728055734836,3.68869,2388.8,2388.7,0.41869]
[1728055735042,3.27,2388.8,2388.6,0.4284]
[1728055735348,3.27,2388.8,2388.6,0.4187]
[1728055735349,0.4187,2388.7,2388.6,0.4187]
[1728055735544,3.27,2388.8,2388.3,1.44241]
[1728055735740,3.68868,2388.8,2388.7,0.4187]
[1728055736339,0.41871,2388.7,2388.6,0.41871]
[1728055738047,3.27,2388.8,2388.3,0.3955]
[1728055738255,3.6892,2389.1,2388.7,0.4187]
[1728055738551,0.4244,2389.2,2388.8,1.86529]
[1728055738743,6.4778,2389.3,2389.2,0.41861]
[1728055738938,6.89639,2389.3,2389.2,0.41861]
[1728055739450,0.41862,2389.2,2389.1,0.41861]
[1728055739647,6.8964,2389.3,2389.2,0.41861]
[1728055739844,3.6886,2389.3,2389.2,0.41861]
[1728055740048,0.41862,2389.2,2389.1,0.41862]
[1728055740251,3.68862,2389.2,2389.1,0.41862]
[1728055740591,3.27,2389.2,2389.1,0.41862]
[1728055741544,3.27,2389.3,2388.9,1.04665]
[1728055741745,0.41862,2389.2,2389.1,0.41862]
[1728055742445,3.68862,2389.2,2389.1,0.41862]
[1728055742649,3.27,2389.2,2389.1,0.41862]
[1728055743144,0.4186,2389.3,2388.9,1.04665]
[1728055743342,0.4186,2389.3,2389.2,0.41861]
[1728055743544,3.6578,2389.4,2389.1,0.41862]
[1728055743545,0.41862,2389.2,2389.1,0.41862]
[1728055743741,0.41862,2389.2,2388.9,1.04665]
[1728055743742,0.4186,2389.3,2389.2,0.4186]
[1728055743943,0.41856,2389.5,2389.4,0.41856]
[1728055744150,4.121,2390.0,2389.4,0.41856]
[1728055744151,43.52973422,2390.2,2389.4,9.27]
[1728055744359,1.24253,2390.3,2390.2,0.41843]
[1728055744657,4.0941,2390.3,2389.5,4.4308]
[1728055744853,0.41851,2389.8,2389.7,0.4185]
[1728055745051,0.41854,2389.6,2389.5,0.4074]
[1728055745250,0.41856,2389.5,2389.4,0.41857]
[1728055745446,1.0464,2389.5,2389.2,0.4074]
[1728055745652,3.27,2389.3,2388.9,4.0234]
[1728055745953,0.41863,2389.1,2389.0,0.41864]
[1728055746453,4.3165,2389.3,2388.9,0.41865]
[1728055746454,0.41865,2389.0,2388.9,0.41865]
[1728055746658,0.41864,2389.1,2389.0,0.41864]
[1728055746957,0.41865,2389.0,2388.9,0.41866]
[1728055747158,0.41863,2389.1,2389.0,0.41864]
[1728055747457,0.41865,2389.0,2388.9,0.41865]
[1728055747650,0.41864,2389.1,2388.6,1.45098]
[1728055747852,0.41865,2389.0,2388.9,0.41866]
[1728055748157,3.6925,2389.3,2389.1,0.41861]
[1728055748456,0.41862,2389.2,2389.1,0.41861]
[1728055748754,3.6925,2389.3,2388.8,1.0467]
[1728055749050,0.4225,2389.3,2389.2,0.41861]
[1728055749251,3.6303,2389.3,2389.2,0.41861]
[1728055749451,0.4225,2389.3,2389.2,0.41861]
[1728055750156,0.84109,2389.3,2389.2,0.41861]
[1728055750344,0.4225,2389.3,2389.2,0.41861]
[1728055750549,3.681,2389.4,2389.1,0.3922]
[1728055750759,0.4186,2389.3,2389.2,0.41859]
[1728055750950,4.09959,2389.4,2389.2,0.41859]
[1728055751154,4.09959,2389.4,2389.3,0.41859]
[1728055751351,3.681,2389.4,2389.1,0.8107]
[1728055751651,0.41859,2389.3,2389.2,0.41861]
[1728055752149,0.41859,2389.3,2389.1,1.22931]
[1728055752349,3.681,2389.4,2389.1,0.8107]
[1728055752558,0.41861,2389.2,2389.1,1.22932]
[1728055753150,0.41861,2389.2,2389.1,0.81082]
[1728055753360,0.41861,2389.2,2389.1,0.81081]
[1728055753662,4.72745,2389.4,2389.1,0.3922]
[1728055753862,0.4186,2389.3,2389.2,0.41861]
[1728055754159,0.41859,2389.3,2389.2,0.41861]
[1728055754559,0.41861,2389.2,2389.1,0.81082]
[1728055755557,0.4186,2389.3,2389.2,0.4186]
[1728055755752,0.41861,2389.2,2389.1,0.81082]
[1728055755956,3.681,2389.4,2389.1,0.3922]
[1728055756466,0.4186,2389.3,2389.2,0.4186]
[1728055757263,0.41856,2389.5,2389.1,1.43876]
[1728055757454,0.41856,2389.5,2389.4,0.41857]
[1728055757758,0.41858,2389.4,2389.3,0.41858]
[1728055757959,0.41857,2389.5,2389.4,0.41857]
[1728055758563,0.41858,2389.4,2389.3,0.41858]
[1728055759662,4.70267,2389.6,2389.1,0.3922]
[1728055759663,3.6563,2389.6,2389.1,0.3922]
[1728055759967,0.4186,2389.3,2389.2,0.4186]
[1728055760461,0.41861,2389.2,2389.1,0.41861]
[1728055760860,0.3877,2389.3,2389.2,0.41861]
[1728055760861,0.8063,2389.3,2389.2,0.41861]
[1728055762953,0.41863,2389.2,2389.1,0.41862]
[1728055763356,0.8063,2389.3,2389.2,0.41861]
[1728055763559,0.41863,2389.2,2389.1,0.41862]